Cogmind - Beta 14 @@@ ROGUE MODE // 2024.10.25 @ 21:56:53 Player: Udabudha Result: Destroyed by G-34 Mercenary with Small Laser Performance ------------- Evolutions (0) 0 Regions Visited (1) 200 Robots Destroyed (0) 0 Value Destroyed (0) 0 Prototype IDs (0) 0 Alien Tech Used (0) 0 Bonus (0) 0 TOTAL SCORE: 200 Bonus ------- None Cogmind --------- Core Integrity 0/250 Matter 290/300 Energy 100/100 System Corruption 0% Temperature Cool (6) Movement Core (100) Ox1 Location -10/Materials Parts ------- > --- POWER (1) -------- (None) > --- PROPULSION (2) --- (None) > --- UTILITY (2) ------ Small Storage Unit > --- WEAPON (2) ------- (None) > --- INVENTORY (8) ---- Ion Engine Light Treads Light Treads Aluminum Leg Aluminum Leg Small Laser Peak State ------------ > --- POWER ------------ Ion Engine > --- PROPULSION ------- Aluminum Leg Aluminum Leg > --- UTILITY ---------- Small Storage Unit > --- WEAPON ----------- Medium Laser Small Laser > --- INVENTORY -------- Ion Engine Light Treads Compact Wheel Compact Wheel [Rating: 6] Favorites ----------- Power Ion Engine Engine Ion Engine Propulsion Compact Wheel Leg Aluminum Leg Wheel Compact Wheel Utility Small Storage Unit Storage Small Storage Unit Weapon Medium Laser Energy Gun Medium Laser Launcher Grenade Launcher Build | -11 -10 ------- Run | Yrd Mat Slots Evolved . | . . Power . | . . Propulsion . | . . Utility . | . . Weapon . | . . Parts Attached 9 | 8 1 Power 1 | 1 . Engine 1 | 1 . Core . | . . Reactor . | . . Propulsion 4 | 4 . Treads . | . . Leg 2 | 2 . Wheel 2 | 2 . Hover . | . . Flight . | . . Utility 1 | 1 . Device . | . . Storage 1 | 1 . Processor . | . . Hackware . | . . Protection . | . . Artifact . | . . Weapon 3 | 2 1 Energy Gun 2 | 2 . Energy Cannon . | . . Ballistic Gun . | . . Ballistic Cannon . | . . Launcher 1 | . 1 Special Weapon . | . . Impact Weapon . | . . Slashing Weapon . | . . Piercing Weapon . | . . Special Melee Weapon . | . . Unidentified Prototypes . | . . Parts Lost 6 | 2 4 Power 1 | . 1 Propulsion 2 | 1 1 Utility . | . . Weapon 3 | 1 2 Highest Loss Streak 4 | 1 4 To Critical Strikes . | . . Average Slot Usage (%) 48 | . 48 Engine 11 | . 11 Wheel 5 | . 5 Storage 14 | . 14 Energy Gun 11 | . 11 Launcher 5 | . 5 Peak Build Rating 6 | 6 5 Average Rating 3 | 3 3 On Entrance 2 | . 4 Naked Turns . | . . Heaviest Build 15 | 13 15 Greatest Support 32 | 32 16 Greatest Overweight (x) 4 | . 4 Average Overweight (x) . | . . Largest Inventory Capacity 8 | 8 8 Average Capacity 7 | 7 8 Most Carried 7 | 6 7 Average Carried 4 | 4 6 Final Capacity 8 | 8 8 Final Carried 6 | 6 6 Class Distribution -------------------- 100% | Mutant Dominant Class ---------------- Mutant | -10/Materials Resources | -11 -10 ----------- Run | Yrd Mat Matter Collected 275 | 275 . Remotely . | . . Salvage Created 42 | 42 . Parts . | . . Haulers Intercepted . | . . Recyclers Shooed . | . . Parts Field Recycled . | . . Retrieved Matter . | . . Parts Self-Destructed . | . . Prevented . | . . Kills | -11 -10 ------- Run | Yrd Mat Combat Hostiles Destroyed 6 | 6 . Guns 6 | 6 . Classes Destroyed 1 | 1 . Assembled 6 | 6 . Best Kill Streak 2 | 2 . Combat Bots Only 2 | 2 . Max Kills in Single Turn 1 | 1 . Gunslinging . | . . Exploded . | . . Melee . | . . Uniques/NPCs Destroyed . | . . Combat | -11 -10 -------- Run | Yrd Mat Hostile Shots Fired 57 | 42 15 Missed 11 | 10 1 Damage Taken 642 | 416 226 Core 254 | 197 57 Absorbed by Shields . | . . Core Remaining (%) 21 | 21 . Volleys Fired 26 | 24 2 Largest 2 | 2 2 Hottest 90 | 90 80 Shots Fired 45 | 41 4 Gun 43 | 41 2 Cannon . | . . Launcher 2 | . 2 Special . | . . Kinetic . | . . Thermal 43 | 41 2 Explosive 2 | . 2 Electromagnetic . | . . Robot Hit Streak 8 | 7 8 Robot Miss Streak 4 | 4 . Penetration Max . | . . Secondary Targets 3 | 3 . Max Gunslinging Chain 1 | 1 . Shots Hit Robots 29 | 25 4 Core Hits 11 | 11 . Critical Kills . | . . Critical Parts Destroyed . | . . Critical Strikes 2 | 2 . Burn 2 | 2 . Melee Attacks . | . . Impact . | . . Slashing . | . . Piercing . | . . Sneak Attacks . | . . Combat Hostiles . | . . Follow-up Attacks . | . . Damage Inflicted 386 | 311 75 Guns 323 | 311 12 Cannons . | . . Explosions 63 | . 63 Melee . | . . Ramming . | . . Kinetic . | . . Thermal 323 | 311 12 Explosive 63 | . 63 Electromagnetic . | . . Impact . | . . Slashing . | . . Piercing . | . . Highest Corruption . | . . Average Corruption . | . . Corruption Purged . | . . Corruption Blocked . | . . Overload Shots . | . . Overflow Damage 15 | . 15 Projectiles . | . . Explosions 15 | . 15 Melee . | . . Knockbacks . | . . Impact . | . . Kinetic . | . . Secondary . | . . Self-Inflicted Damage 53 | . 53 Shots 2 | . 2 Rammed . | . . Targets Rammed . | . . Kicked . | . . Crushed . | . . Highest Temperature 390 | 390 36 Average Temperature 120 | 126 20 Received Heat Transfer 367 | 280 87 Effects 2 | 2 . Interference 2 | 2 . Siege Activations . | . . Robots Corrupted . | . . Combat Hostiles . | . . Parts Fried . | . . Impact Corruptions . | . . Robots Melted . | . . Combat Hostiles . | . . Parts Melted . | . . Heat Transferred 1015 | 978 37 Parts Sabotaged . | . . Parts Stolen . | . . Parts Stripped . | . . Power Chain Reactions . | . . Alert | -11 -10 ------- Run | Yrd Mat Peak Influence 15 | . 15 Initial . | . . Average . | . 2 Maximum Alert Level . | . . Low Security (%) 100 | 100 100 Level 1 . | . . Level 2 . | . . Level 3 . | . . Level 4 . | . . Level 5 . | . . High Security . | . . Max Security . | . . Squads Dispatched 1 | . 1 Investigation 1 | . 1 Extermination . | . . Reinforcement . | . . Assault . | . . Garrison . | . . Intercept . | . . Searches Triggered . | . . Construction Impeded . | . . Haulers Reinforced . | . . Active Scanning Responses . | . . Cargo Convoy Interrupts . | . . Stealth | -11 -10 --------- Run | Yrd Mat Distress Signals . | . . Communications Jammed . | . . Distress Signals . | . . Times Spotted 13 | 6 7 Peak Tracking Total 7 | 3 7 Tactical Retreats . | . . Traps | -11 -10 ------- Run | Yrd Mat Traps Triggered 1 | . 1 Indirectly . | . . Trap Hack Attempts . | . . Triggered . | . . Disarmed . | . . Reprogrammed . | . . Reused . | . . Traps Extracted . | . . Installed . | . . Triggered . | . . Machines | -11 -10 ---------- Run | Yrd Mat Machines Disabled . | . . Max in Single Turn . | . . Machines Repaired . | . . Machines Dismantled . | . . Machines Sabotaged . | . . Overloaded Fab Kills . | . . Hacking | -11 -10 --------- Run | Yrd Mat Machines Accessed . | . . Terminals . | . . Fabricators . | . . Repair Stations . | . . Recycling Units . | . . Scanalyzers . | . . Garrison Access . | . . Total Hacks . | . . Successful . | . . Failed . | . . Catastrophic . | . . Database Lockouts . | . . Manual . | . . Terminals . | . . Fabricators . | . . Repair Stations . | . . Recycling Units . | . . Scanalyzers . | . . Garrison Access . | . . Terminal Hacks . | . . Fabricator Hacks . | . . Repair Station Hacks . | . . Recycling Unit Hacks . | . . Scanalyzer . | . . Garrison Access Hacks . | . . Unauthorized Hacks . | . . Terminals . | . . Fabricators . | . . Repair Stations . | . . Recycling Units . | . . Scanalyzers . | . . Garrison Access . | . . Data Cores Recovered . | . . Used . | . . Hacking Detections . | . . Full Trace Events . | . . Feedback Events . | . . Feedback Blocked . | . . Robot Schematics Acquired . | . . Robots Built . | . . Authchips . | . . Time . | . . Total Robot Build Rating . | . . Part Schematics Acquired . | . . Parts Built . | . . Authchips . | . . Time . | . . Total Part Build Rating . | . . Parts Repaired . | . . Time . | . . Parts Recycled . | . . Recycled Matter . | . . Retrieved Matter . | . . Retrieved Components . | . . Parts Scanalyzed . | . . Part Schematics Acquired . | . . Parts Damaged . | . . Bothacking | -11 -10 ------------ Run | Yrd Mat Used RIF Installer . | . . Robots Hacked . | . . Non-combat . | . . Combat . | . . Robot Hacks Applied . | . . Relay Couplers Released . | . . Fabnet Peak Effective % . | . . Robots Rewired . | . . Allies Hacked . | . . Hacks Repelled . | . . Allies | -11 -10 -------- Run | Yrd Mat Total Allies . | . . Largest Group . | . . Highest-Rated Group . | . . Highest-Rated Ally . | . . Total Orders . | . . Ally Attacks . | . . Total Damage . | . . Kills . | . . Allies Corrupted . | . . Allies Melted . | . . Intel | -11 -10 ------- Run | Yrd Mat Robot Analysis Total . | . . Derelict Logs Recovered . | . . Drone Launches . | . . Drone Recoveries . | . . Exploration | -11 -10 ------------- Run | Yrd Mat Turns Passed 3358 | 3300 58 Spaces Moved 798 | 755 43 Core 35 | 18 17 Treads . | . . Legs 180 | 180 . Wheels 583 | 557 26 Hover . | . . Flight . | . . Fastest Speed 50 | 50 100 Average Speed 104 | 103 115 Slowest Speed 250 | 120 250 Overloaded Moves . | . . Propulsion Burnouts . | . . Robots Hopped . | . . Cave-ins Triggered . | . . Exploration Rate (%) 64 | 109 20 Regions Visited 1 Branch Regions . Pre-discovered Areas . | . . Known Exits Taken . | . . Unknown Exits Taken 1 | 1 . Scrap Searched . | . . Spaces Dug . | . . Terrain Destroyed 1 | . 1 Melee . | . . Projectile . | . . AOE 1 | . 1 Terrain Rammed . | . . Walls Destroyed . | . . Machines Disabled . | . . Actions | -11 -10 --------- Run | Yrd Mat Total 3275 | 3228 47 Wait 2435 | 2435 . Move 797 | 754 43 Hop . | . . Pick Up 8 | 7 1 Fast Attach 5 | 5 . Attach 2 | 1 1 Detach . | . . Swap 2 | 2 . Drop . | . . Fire 26 | 24 2 Melee . | . . Ram . | . . Kick . | . . Crush . | . . Escape Stasis . | . . Rewire . | . . Trap . | . . Miscellaneous . | . . Route ------- -11/Scrapyard -10/Materials History --------- Turn | Location | Event 1061 | -11/Scrapyard | Discovered new exit (range 15) 2802 | -11/Scrapyard | Assembled infested the area 3030 | -11/Scrapyard | Core integrity fell below 50% 3301 | -11/Scrapyard | Entered Materials 3302 | -10/Materials | Build established: Mutant 3341 | -10/Materials | Core integrity fell below 20% 3359 | -10/Materials | Destroyed by G-34 Mercenary with Small Laser Last Messages --------------- scrapyard. Terminate on contact. Acquired Grenade Launcher. U-05 Engineer works on Purification Channel. K-01 Serf collects debris. U-05 Engineer works on Purification Channel. K-01 Serf collects debris. U-05 Engineer works on Purification Channel. K-01 Serf collects debris. Com. Wheel destroyed. Destroyed Com. Wheel. K-01 Serf collects debris. Grenade Launcher destroyed. K-01 Serf collects debris. Med. Laser destroyed. K-01 Serf collects debris. Ion Engine destroyed. Triggered Alarm Trap. An alarm sounds. ALERT: Alarm triggered, dispatching investigation squad. Map ----- +----------------------------------------------------+ | ???????????????????????????????????# #?????????? | | ??????????????????????############## #?????????? | | ????????????????????? #?????????? | | ????????????????????? ######### # | | ????????????????????? | | ????????????????????? | | ???????????????????? | | ???????????????????? | | ??????????????????????##### | | ?????????????????? ???????# | | ?????????????????""???????+ | | ??????????????????" ??????### | | ??????????????????" ????????## | | ??????????????????? ???????## | | ????????????########s######## | | ???????????? ? | | ??????????? ? | | ????????????? ? | | ????????????????###### ?? | | ?????????????????????# g ################?? | | ?????????????????????# g"" #????????????????? | | ?????????????????????# "" w #????????????????? | | ?????????????????????# T" #????????????????? | | ?????????????????????# "" ######???????????? | | ?????????????????????# "" w ????????? | | ?????????????????????# @ #?????????? | | ?????????????????????# ^ #?????????? | | ?????????????????????####+########## #?????????? | | ????????????????????????????????????? ???????????? | | ?????????????????????????????????????????????????? | | ?????????????????????????????????????????????????? | | ?????????????????????????????????????????????????? | | ?????????????????????????????????????????????????? | | ?????????????????????????????????????????????????? | | ?????????????????????????????????????????????????? | | ?????????????????????????????????????????????????? | | ?????????????????????????????????????????????????? | | ?????????????????????????????????????????????????? | | ?????????????????????????????????????????????????? | | ?????????????????????????????????????????????????? | | ?????????????????????????????????????????????????? | | ?????????????????????????????????????????????????? | | ?????????????????????????????????????????????????? | | ?????????????????????????????????????????????????? | | ?????????????????????????????????????????????????? | | ?????????????????????????????????????????????????? | | ?????????????????????????????????????????????????? | | ?????????????????????????????????????????????????? | | ?????????????????????????????????????????????????? | | ?????????????????????????????????????????????????? | +----------------------------------------------------+ Best States ------------- Heat Dissipation 25 Energy Generation 10 Energy Capacity 250 Matter Stores 300 Matter Capacity 300 Sight Range 16 Terrain Scan Density 10 Evasion (%) 55 Item Schematics ----------------- None Robot Schematics ------------------ None Fabricated ------------ Nothing Alien Tech Used ----------------- None Achievements -------------- None Challenges ------------ None Game ------ Seed ArchitectNuclearSuite Manual? 0 Play Time 00:07:07 Cumulative 7.7 hours Start 2024.10.25 @ 21:50:25 End 2024.10.25 @ 21:56:53 Sessions 1 Manual Loads 0 Difficulty Rogue Special Mode None Game No. 20 Rogue 17 Adventurer 1 Explorer 2 Win Type - Total 0 Types 0/0/0/0/0/0/0/0/0 Lore% 9 Gallery% 16 Achievement% 16 Wizard Run 0 Options --------- Layout 1 ASCII 0 Keyboard 0 Movement Numpad Keybinds 0 Fullscreen 1 Font 48/Smallcaps Map View 50x35 Zoom Use 0% Tactical HUD 0 Map Filters NONE Filters NONE Steam 1 RUN: a12605d2-c287-4cf1-80ca-8cd50ff8814f